bitfinex/quotes_SOLUSD_20260304
["timestamp","ask_amount","ask_price","bid_price","bid_amount"]
[1772668096978,0.45410453,91.267,91.208,0.49227613]
[1772668097886,0.45410453,91.267,91.21,0.49227613]
[1772668099183,0.45410453,91.267,91.213,0.47119282]
[1772668100184,0.45410453,91.267,91.215,0.47119282]
[1772668101560,10.95698288,91.266,91.215,0.47119282]
[1772668101763,0.45438827,91.265,91.215,0.47119282]
[1772668103984,0.45438827,91.265,91.216,38.37046131]
[1772668104286,0.45438827,91.265,91.217,0.47119282]
[1772668105991,0.45438827,91.264,91.217,0.47119282]
[1772668108297,0.45438827,91.264,91.219,0.49200319]
[1772668109898,0.45438827,91.264,91.224,0.49200319]
[1772668110291,0.47208538,91.263,91.22,38.36877877]
[1772668111202,0.47208538,91.261,91.21,10.96371011]
[1772668111412,0.47208538,91.259,91.21,10.96371011]
[1772668111705,0.47208538,91.259,91.21,38.3729854]
[1772668112005,0.47208538,91.257,91.21,27.40927529]
[1772668113687,0.47208538,91.257,91.209,0.49200319]
[1772668113886,0.47208538,91.255,91.21,10.96371011]
[1772668114085,0.47208538,91.255,91.21,38.3729854]
[1772668114387,0.47208538,91.255,91.211,0.49200319]
[1772668116685,0.47208538,91.249,91.177,0.49200319]
[1772668117002,10.95842374,91.254,91.177,0.49200319]
[1772668117003,0.47208538,91.232,91.177,0.49200319]
[1772668119007,0.47208538,91.23,91.179,0.49200319]
[1772668121203,0.47208538,91.224,91.181,0.49200319]
[1772668121411,0.47208538,91.214,91.18,10.96731739]
[1772668121785,0.47208538,91.214,91.175,10.96783371]
[1772668122815,0.14216157,91.223,91.175,10.96783371]
[1772668122816,38.37172332,91.213,91.175,10.96783371]
[1772668122993,0.47208538,91.204,91.158,0.49200319]
[1772668123307,4.14867535,91.21,91.171,3.17219349]
[1772668123308,0.28432314,91.203,91.171,3.17219349]
[1772668123482,0.28432314,91.199,91.171,3.17219349]
[1772668123683,38.37172332,91.213,91.152,0.5]
[1772668123908,0.28432314,91.197,91.152,0.5]
[1772668124603,0.28432314,91.197,91.141,10.97195736]
[1772668124801,0.28432314,91.189,91.141,10.97195736]
[1772668125002,0.28432314,91.187,91.137,10.97249196]
[1772668125404,0.28432314,91.187,91.137,11.47249196]
[1772668125605,0.28432314,91.187,91.138,0.5]
[1772668125811,0.28432314,91.185,91.138,0.5]
[1772668126799,0.14216157,91.179,91.138,0.5]
[1772668127107,0.28432314,91.177,91.134,10.97285316]
[1772668127308,0.28432314,91.177,91.135,0.5]
[1772668128011,0.28432314,91.172,91.121,0.5]
[1772668128307,0.28432314,91.172,91.121,11.47441863]
[1772668128609,0.28432314,91.172,91.122,0.5]
[1772668128993,0.28432314,91.167,91.124,0.5]
[1772668129493,10.96876096,91.168,91.122,0.5]
[1772668130005,30.0,91.164,91.122,0.5]
[1772668130189,0.28432314,91.163,91.122,0.5]
[1772668130790,0.28432314,91.159,91.118,2.73719273]
[1772668130989,0.28432314,91.147,91.118,2.73719273]
[1772668131206,0.28432314,91.147,91.121,10.97441863]
[1772668131413,10.97116777,91.148,91.121,10.97441863]
[1772668131614,0.28432314,91.147,91.118,2.73719273]
[1772668131998,30.28432314,91.147,91.118,2.73719273]
[1772668133319,0.28432314,91.145,91.118,2.73719273]
[1772668133506,30.0,91.144,91.118,2.73719273]
[1772668134721,30.0,91.144,91.122,0.5]
[1772668135607,30.0,91.144,91.118,2.73719273]
[1772668135608,30.0,91.144,91.124,0.5]
[1772668137208,10.97162838,91.145,91.124,0.5]
[1772668137618,10.96972356,91.16,91.124,0.5]
[1772668139100,38.670776,91.178,91.124,0.5]
[1772668139923,38.670776,91.178,91.126,0.5]
[1772668140635,0.28432314,91.159,91.119,0.5]
[1772668140807,30.0,91.143,91.118,2.73719273]
[1772668141328,10.97189001,91.142,91.118,3.23719273]
[1772668141729,30.0,91.14,91.12,0.7]
[1772668142107,27.11996107,91.14,91.122,0.5]
[1772668142311,10.97059885,91.153,91.122,0.5]
[1772668142526,0.28432314,91.173,91.122,0.5]
[1772668142728,38.38813696,91.174,91.122,0.5]
[1772668142937,0.28432314,91.169,91.122,0.5]
[1772668143611,0.28432314,91.167,91.122,0.5]
[1772668144129,0.28432314,91.167,91.123,10.97417775]
[1772668144833,0.28432314,91.159,91.12,0.2]
[1772668145331,0.28432314,91.159,91.121,0.5]
[1772668145832,93.244696,91.158,91.118,2.73719273]
[1772668146018,0.28432314,91.157,91.118,2.73719273]
[1772668146219,0.28432314,91.149,91.118,2.73719273]
[1772668146431,0.28432314,91.157,91.12,0.5]
[1772668146731,10.96695655,91.183,91.12,0.5]
[1772668147244,0.28432314,91.182,91.12,0.5]
[1772668147615,38.38434794,91.183,91.12,0.5]
[1772668147815,0.14216157,91.182,91.122,0.5]
[1772668148015,0.28432314,91.182,91.122,0.5]
[1772668148417,0.28432314,91.188,91.122,0.5]
[1772668148833,10.96623496,91.189,91.13,0.5]
[1772668150043,38.65772926,91.209,91.132,0.5]
[1772668153425,38.65772926,91.209,91.134,0.5]
[1772668153844,0.28432314,91.199,91.134,0.5]
[1772668155443,0.28432314,91.179,91.136,0.5]
[1772668157227,0.28432314,91.188,91.136,0.5]
[1772668158547,0.28432314,91.179,91.138,0.5]
[1772668160643,0.28432314,91.177,91.138,0.5]
[1772668161152,0.28432314,91.177,91.13,0.5]
[1772668161353,0.28432314,91.169,91.123,2.73704254]
[1772668161529,0.28432314,91.169,91.124,0.5]
[1772668164759,38.39066338,91.168,91.126,0.5]
[1772668164941,10.96876096,91.168,91.126,0.5]
[1772668165139,0.28432314,91.176,91.126,0.5]
[1772668165344,0.14216157,91.176,91.126,0.5]
[1772668165740,0.28432314,91.176,91.126,0.5]
[1772668166542,0.14216157,91.176,91.126,0.5]
[1772668166742,0.28432314,91.176,91.126,0.5]
[1772668167150,10.96791883,91.175,91.127,38.40793617]
[1772668167350,10.96791883,91.175,91.128,0.5]
[1772668168560,38.38771592,91.175,91.128,0.5]
[1772668168744,0.28432314,91.174,91.128,0.5]
[1772668169359,0.28432314,91.172,91.13,0.5]
[1772668172067,0.28432314,91.17,91.132,0.5]
[1772668175253,0.28432314,91.168,91.133,0.5]
[1772668180465,0.14216157,91.166,91.133,0.5]
[1772668180863,0.14216157,91.166,91.123,2.73704254]
[1772668181070,0.14216157,91.159,91.123,3.23704254]
[1772668181256,0.14216157,91.149,91.11,0.2]
[1772668181461,0.14216157,91.149,91.111,0.5]
[1772668181975,0.14216157,91.166,91.111,0.5]
[1772668182168,29.5,91.138,91.111,0.5]
[1772668182370,28.5,91.138,91.111,0.48491873]
[1772668182564,0.48317528,91.154,91.113,0.48491873]
[1772668187071,0.48317528,91.152,91.115,0.48491873]
[1772668188475,0.49848741,91.146,91.11,0.2]
[1772668188676,0.49848741,91.146,91.111,10.97562314]
[1772668188856,0.49848741,91.146,91.112,0.46015688]
[1772668189784,0.28432314,91.147,91.11,0.2]
[1772668189785,0.49848741,91.135,91.11,0.2]
[1772668190777,10.97285316,91.134,91.11,0.2]
[1772668190960,0.49848741,91.132,91.093,0.46015688]
[1772668191166,0.49848741,91.132,91.095,0.46015688]
[1772668191661,0.49848741,91.126,91.089,10.97816294]
[1772668192260,0.49848741,91.126,91.091,10.97803295]
[1772668192786,0.49848741,91.126,91.088,0.46015688]
[1772668192969,0.49848741,91.123,91.088,0.46015688]
[1772668193982,0.49848741,91.105,91.076,0.46015688]
[1772668194159,0.49848741,91.12,91.076,0.46015688]
[1772668194983,10.97477995,91.118,91.078,0.46015688]
[1772668195183,0.49848741,91.117,91.078,0.46015688]
[1772668195475,10.97408963,91.124,91.078,0.46015688]
[1772668195666,11.47257704,91.124,91.078,0.46015688]
[1772668195979,0.49848741,91.123,91.078,0.46015688]
[1772668198773,0.49848741,91.123,91.056,43.9285385]
[1772668198774,0.28432314,91.116,91.068,0.46015688]
[1772668198972,0.49848741,91.115,91.076,0.46015688]
[1772668199374,0.49848741,91.113,91.076,0.46015688]
[1772668200892,0.49848741,91.111,91.078,0.46015688]
[1772668201892,30.0,91.11,91.078,0.46015688]
[1772668202084,0.49848741,91.109,91.078,0.46015688]
[1772668202579,0.49848741,91.107,91.079,10.97947935]
[1772668204097,0.49848741,91.107,91.078,0.46015688]
[1772668204476,0.49848741,91.105,91.075,10.9799447]
[1772668204678,0.49848741,91.105,91.073,10.98010076]
[1772668205479,0.49848741,91.105,91.074,2.6666779]
[1772668205895,0.49848741,91.103,91.074,2.6666779]
[1772668207205,0.49848741,91.103,91.074,2.20652102]
[1772668207678,10.97646645,91.104,91.075,0.46015688]
[1772668208781,0.49848741,91.108,91.076,0.46015688]
[1772668209808,0.49848741,91.108,91.074,2.20652102]
[1772668210099,0.49848741,91.108,91.075,0.46015688]
[1772668210308,0.49848741,91.108,91.076,0.46015688]
[1772668210501,10.9753304,91.114,91.076,0.46015688]
[1772668211007,0.49848741,91.114,91.078,0.46015688]
[1772668212209,28.21674962,91.128,91.08,0.46015688]
[1772668212417,0.49848741,91.135,91.08,0.46015688]
[1772668212589,11.47129085,91.135,91.08,0.46015688]
[1772668212789,0.49848741,91.134,91.08,0.46015688]
[1772668213191,10.97280344,91.135,91.08,0.46015688]
[1772668213192,0.49848741,91.126,91.08,0.46015688]
[1772668214719,0.49848741,91.124,91.082,0.46015688]
[1772668217004,0.49848741,91.122,91.077,10.97968882]
[1772668217790,0.49848741,91.122,91.078,0.46015688]
[1772668219007,0.48085115,91.12,91.08,0.45136297]
[1772668219414,0.48085115,91.129,91.08,0.45136297]
[1772668219719,10.97309397,91.132,91.08,0.45136297]
[1772668219908,10.97309397,91.132,91.079,38.42817773]
[1772668219909,11.45345513,91.137,91.083,0.45136297]
[1772668221011,0.48085115,91.134,91.088,0.45136297]
[1772668223218,10.97297356,91.133,91.09,0.45136297]
[1772668223422,11.45382471,91.133,91.09,0.45136297]
[1772668224620,0.48085115,91.132,91.09,0.45136297]
[1772668225223,0.48085115,91.155,91.092,0.45136297]
[1772668225415,0.48085115,91.154,91.092,0.45136297]
[1772668232015,0.48770452,91.152,91.094,0.47460157]
[1772668234230,0.48770452,91.146,91.096,0.47460157]
[1772668234716,0.48770452,91.146,91.095,10.9775509]
[1772668234915,0.48770452,91.136,91.076,0.47460157]
[1772668235816,0.48770452,91.126,91.076,0.47460157]
[1772668236932,0.48770452,91.124,91.078,0.47460157]
[1772668238841,0.48770452,91.122,91.077,10.97972045]
[1772668240742,0.48770452,91.12,91.077,10.97972045]
[1772668241435,0.48770452,91.12,91.074,2.20652102]
[1772668241436,0.48770452,91.116,91.074,2.20652102]
[1772668242020,0.48770452,91.106,91.074,2.20652102]
[1772668244023,0.48770452,91.104,91.074,2.20652102]
[1772668244425,0.48770452,91.096,91.056,0.47460157]
[1772668246243,0.48770452,91.094,91.056,0.47460157]
[1772668247125,0.48770452,91.094,91.055,10.98229528]
[1772668247126,0.48770452,91.094,91.058,0.47460157]
[1772668249340,0.49935097,91.092,91.058,0.47460157]
[1772668249650,0.28432314,91.087,91.045,0.48191838]
[1772668249853,0.49935097,91.086,91.045,0.48191838]
[1772668250027,10.97779192,91.093,91.052,0.48191838]
[1772668250446,10.9770969,91.099,91.052,0.48191838]
[1772668251546,0.49935097,91.099,91.054,0.48191838]
[1772668256355,0.49935097,91.097,91.056,0.48191838]
[1772668257453,10.9774304,91.096,91.058,0.48191838]
[1772668257651,27.43607848,91.121,91.06,0.48191838]
[1772668257960,0.49935097,91.127,91.071,0.48191838]
[1772668258960,0.49935097,91.125,91.073,0.48191838]
[1772668261955,0.49935097,91.123,91.075,0.48191838]
[1772668263039,38.40920064,91.124,91.067,0.48191838]
[1772668263040,0.49935097,91.117,91.067,0.48191838]
[1772668263239,0.49935097,91.105,91.06,0.48191838]
[1772668263441,0.49935097,91.095,91.051,0.48191838]
[1772668264062,0.49935097,91.093,91.051,0.48191838]
[1772668264367,0.49935097,91.093,91.043,0.48191838]
[1772668264776,0.49935097,91.083,91.043,0.48191838]
[1772668265451,0.49935097,91.083,91.043,11.46571452]
[1772668265654,30.0,91.08,91.043,11.46571452]
[1772668265957,0.49935097,91.079,91.047,10.98332246]
[1772668266366,0.49935097,91.077,91.05,11.1829142]
[1772668266567,0.49935097,91.077,91.051,0.48191838]
[1772668266880,0.49935097,91.075,91.051,0.48191838]
[1772668267050,10.9795999,91.078,91.051,0.48191838]
[1772668267251,0.49935097,91.077,91.05,11.1829142]
[1772668267660,0.49935097,91.077,91.05,11.66483258]
[1772668267859,0.49935097,91.077,91.051,0.48191838]
[1772668268464,10.97984101,91.076,91.052,0.48191838]
[1772668268665,11.47919198,91.076,91.052,0.48191838]
[1772668268849,11.47919198,91.076,91.05,0.2]
[1772668268850,0.49935097,91.075,91.05,0.2]
[1772668269259,0.49935097,91.075,91.04,0.81311511]
[1772668270562,0.49935097,91.073,91.04,0.81311511]
[1772668271269,0.49935097,91.07,91.04,0.81311511]
[1772668271472,0.49935097,91.07,91.022,0.48191838]
[1772668271773,0.49935097,91.066,91.022,0.48191838]
[1772668272076,0.49935097,91.096,91.025,3.97815716]
[1772668272280,0.5,91.094,91.025,3.97815716]
[1772668272476,10.97779192,91.093,91.026,38.45055258]
[1772668272675,0.5,91.086,91.026,38.45055258]
[1772668273569,0.5,91.076,91.026,10.98587216]
[1772668273872,0.5,91.066,91.026,10.98587216]
[1772668274663,0.5,91.064,91.021,10.98647564]
[1772668276756,0.5,91.062,91.021,10.98647564]
[1772668280461,0.5,91.06,91.021,10.98647564]
[1772668282170,0.5,91.056,91.003,27.47140292]
[1772668282369,0.5,91.054,91.012,10.98745]
[1772668283186,0.5,91.054,91.016,10.98704323]
[1772668283485,0.5,91.054,91.018,10.98681581]
[1772668285476,0.5,91.084,91.025,0.28432314]
[1772668286372,0.5,91.084,91.031,3.69383402]
[1772668286974,0.5,91.082,91.032,38.44801826]
[1772668287379,0.5,91.082,91.034,30.0]
[1772668289169,0.5,91.08,91.035,10.98478607]
[1772668289379,0.5,91.08,91.038,30.0]
[1772668290897,0.5,91.094,91.039,0.28432314]
[1772668291198,0.5,91.094,91.04,30.0]
[1772668291380,0.5,91.094,91.041,38.44421743]
[1772668291692,0.5,91.092,91.041,38.44421743]
[1772668292198,0.5,91.092,91.044,30.0]
[1772668293791,0.5,91.09,91.045,10.98357954]
[1772668293971,0.28432314,91.081,91.048,24.72190142]
[1772668294179,0.5,91.076,91.025,10.98599285]
[1772668294380,0.5,91.076,91.025,11.47583792]
[1772668294799,0.5,91.076,91.026,0.48984507]
[1772668295699,0.5,91.076,91.025,10.98599285]
[1772668295876,38.42986549,91.075,91.021,10.98647564]
[1772668296079,0.47996928,91.065,91.022,0.48984507]
[1772668296578,0.47996928,91.084,91.024,0.48984507]
[1772668296787,0.47996928,91.083,91.024,0.48984507]
[1772668297190,0.47996928,91.083,91.027,0.28432314]
[1772668297409,10.97887664,91.084,91.03,0.48984507]
[1772668297596,11.45781468,91.093,91.03,0.48984507]
[1772668298194,10.9771894,91.098,91.036,0.48984507]
[1772668298390,0.47996928,91.097,91.04,0.48984507]
[1772668300487,0.47996928,91.085,91.04,10.98418277]
[1772668302602,0.47996928,91.083,91.031,0.48984507]
[1772668304808,0.47996928,91.081,91.032,10.98514807]
[1772668305006,0.47996928,91.065,91.014,0.48984507]
[1772668305205,0.47996928,91.065,91.019,10.98662963]
[1772668306190,0.47996928,91.065,91.014,0.48984507]
[1772668306391,0.47996928,91.065,91.016,10.98699693]
[1772668306687,0.14216157,91.058,91.012,10.98750999]
[1772668306906,0.47996928,91.055,91.012,10.98750999]
[1772668307310,0.47996928,91.055,90.982,3.69383402]
[1772668307311,0.47996928,91.027,90.964,0.48984507]
[1772668307493,0.28432314,91.012,90.99,1e-08]
[1772668307692,0.47996928,91.005,90.99,1e-08]
[1772668308910,0.45217546,91.003,90.99,1e-08]
[1772668310434,0.45217546,91.003,90.973,0.47822408]
[1772668310617,0.45217546,91.003,90.98,1e-08]
[1772668311209,0.45217546,91.001,90.98,1e-08]
[1772668311628,0.45217546,90.995,90.98,1e-08]
[1772668313116,0.45217546,90.993,90.98,1e-08]
[1772668314241,0.28432314,90.986,90.96,1e-08]
[1772668314418,0.45217546,90.985,90.96,1e-08]
[1772668315628,0.45217546,90.983,90.96,1e-08]
[1772668316932,38.46830211,90.984,90.961,0.47822408]
[1772668318527,38.46830211,90.984,90.96,1e-08]
[1772668318528,0.45217546,90.983,90.96,1e-08]
[1772668319338,0.45217546,90.979,90.94,1e-08]
[1772668319633,0.45217546,90.966,90.94,1e-08]
[1772668320438,0.45217546,90.966,90.916,10.99907044]
[1772668321233,0.45217546,90.964,90.914,1.7085751]
[1772668321547,0.45217546,90.986,90.921,0.28432314]
[1772668321750,0.45217546,90.986,90.92,38.69535115]
[1772668322342,0.45217546,90.986,90.921,0.22177593]
[1772668323051,38.46703375,90.987,90.921,0.22177593]
[1772668323052,0.28432314,90.981,90.921,0.22177593]
[1772668323243,0.28432314,90.981,90.92,11.19865076]
[1772668323244,0.45217546,90.966,90.92,0.2]
[1772668323844,0.28432314,90.976,90.922,0.22177593]
[1772668324156,0.45217546,90.975,90.922,0.22177593]
[1772668325535,0.45217546,90.973,90.922,0.22177593]
[1772668325751,0.28432314,90.96,90.92,0.2]
[1772668325954,0.45217546,90.955,90.92,0.2]
[1772668327155,0.45217546,90.945,90.914,1e-08]
[1772668327458,0.45217546,90.935,90.914,1e-08]
[1772668327676,0.45217546,90.952,90.915,0.22177593]
[1772668327960,0.45217546,90.961,90.915,0.22177593]
[1772668328164,0.45217546,90.955,90.914,1e-08]
[1772668328874,0.28432314,90.94,90.914,1e-08]
[1772668329174,0.45217546,90.935,90.914,1e-08]
[1772668329760,0.45217546,90.965,90.915,0.22177593]
[1772668329970,0.45217546,90.955,90.915,0.22177593]
[1772668330740,38.9285125,90.965,90.915,0.22177593]
[1772668331065,0.45217546,90.964,90.915,0.22177593]
[1772668331664,0.45217546,90.964,90.914,1e-08]
[1772668331966,0.45217546,90.962,90.914,0.22177594]
[1772668332147,0.45217546,90.962,90.914,1e-08]
[1772668332350,0.28432314,90.959,90.914,1e-08]
[1772668332554,0.45217546,90.956,90.914,1e-08]
[1772668334051,10.9944478,90.955,90.914,1e-08]
[1772668336070,0.45217546,90.954,90.914,1e-08]
[1772668338753,11.46977619,90.953,90.914,0.22177594]
[1772668339663,0.47508663,90.952,90.914,0.22177594]
[1772668340875,10.99493133,90.951,90.916,0.22177593]
[1772668341258,11.47001796,90.951,90.916,0.22177593]
[1772668341467,0.47508663,90.95,90.916,0.22177593]
[1772668341770,0.47508663,90.95,90.914,1e-08]
[1772668342972,38.4831059,90.949,90.914,1e-08]
[1772668343169,0.47508663,90.948,90.914,1e-08]
[1772668343676,0.47508663,90.944,90.914,1e-08]
[1772668344462,8.95350661,90.94,90.914,1e-08]
[1772668344763,0.47508663,90.939,90.914,1e-08]
[1772668345159,38.48818412,90.937,90.914,1e-08]
[1772668345360,0.47508663,90.934,90.914,1e-08]
[1772668346673,30.0,90.921,90.914,1e-08]
[1772668347060,0.47438716,90.92,90.914,1e-08]
[1772668347880,40.99924594,90.916,90.914,1e-08]
[1772668349178,10.99638219,90.939,90.914,1e-08]
[1772668349880,0.5,90.944,90.914,1e-08]
[1772668350860,0.5,90.942,90.914,1e-08]
[1772668353386,0.5,90.94,90.914,1e-08]
[1772668355788,0.5,90.938,90.914,1e-08]
[1772668358292,0.5,90.919,90.89,1e-08]
[1772668358497,0.5,90.914,90.866,11.00513239]
[1772668358795,0.5,90.914,90.869,11.00481252]
[1772668359485,0.5,90.911,90.869,11.00481252]
[1772668360392,30.0,90.912,90.842,3.69383402]
[1772668360393,0.5,90.904,90.849,27.51801516]
[1772668361092,0.5,90.904,90.855,11.00649537]
[1772668361273,0.5,90.904,90.849,27.51801516]
[1772668361473,0.5,90.899,90.849,27.51801516]
[1772668361983,0.5,90.899,90.86,11.00586968]
[1772668362492,0.5,90.895,90.86,11.00586968]
[1772668362987,0.5,90.895,90.832,3.69383402]
[1772668362988,0.47438716,90.893,90.873,28.2]
[1772668363193,0.47438716,90.893,90.86,0.5]
[1772668364902,38.50723935,90.892,90.86,0.5]
[1772668365074,0.28432314,90.916,90.861,0.5]
[1772668365597,38.49665078,90.917,90.861,0.5]
[1772668365802,0.28432314,90.916,90.862,0.5]
[1772668366099,0.14216157,90.916,90.866,0.5]
[1772668366594,0.28432314,90.916,90.866,0.5]
[1772668366788,10.99928504,90.915,90.87,0.5]
[1772668367093,0.28432314,90.941,90.87,0.5]
[1772668367286,38.48606804,90.942,90.874,0.5]
[1772668367594,38.48606804,90.942,90.88,0.5]
[1772668368572,38.48606804,90.942,90.871,0.28432314]
[1772668368573,0.28432314,90.949,90.882,0.5]
[1772668369086,38.48141347,90.953,90.89,0.5]
[1772668370082,4.1800127,90.99,90.9,0.5]
[1772668370296,0.28432314,90.989,90.91,0.5]
[1772668370496,0.28432314,90.986,90.91,0.5]
[1772668370800,38.46787931,90.985,90.912,0.5]
[1772668371278,0.28432314,90.979,90.912,0.5]
[1772668371881,0.14216157,90.979,90.912,0.5]
[1772668372082,0.28432314,90.979,90.912,0.5]
[1772668372478,0.28432314,90.959,90.914,0.5]
[1772668373902,0.28432314,90.957,90.914,0.5]
[1772668375102,0.28432314,90.955,90.914,0.5]
[1772668377107,0.46644297,90.953,90.883,0.28432314]
[1772668377306,0.46644297,90.945,90.875,3.69383402]
[1772668377607,0.46644297,90.945,90.876,0.28432314]
[1772668377814,0.46644297,90.945,90.875,3.69383402]
[1772668377815,0.46644297,90.953,90.88,27.50880281]
[1772668378009,0.46644297,90.953,90.881,0.28432314]
[1772668379194,0.46644297,90.951,90.89,0.46965722]
[1772668380906,38.48183656,90.952,90.89,0.46965722]
[1772668380907,0.46644297,90.945,90.89,0.46965722]
[1772668381727,38.48522167,90.944,90.892,0.46965722]
[1772668384410,0.46644297,90.945,90.894,0.46965722]
[1772668387616,8.94905934,90.96,90.896,0.48322148]
[1772668388503,8.95570877,90.96,90.896,0.48322148]
[1772668388909,38.47887509,90.959,90.897,11.00146319]
[1772668389209,38.47887509,90.959,90.898,0.48322148]
[1772668389608,0.03355703,90.958,90.898,0.48322148]
[1772668391318,0.03355703,90.958,90.9,0.48322148]
[1772668393520,0.03355703,90.958,90.902,0.48322148]
[1772668396327,0.03355703,90.958,90.904,0.48322148]
[1772668398019,0.03355703,90.939,90.89,0.48322148]
[1772668400524,0.03355703,90.938,90.89,0.48322148]
[1772668405615,0.03355703,90.937,90.89,0.48322148]
[1772668405928,0.03355703,90.928,90.863,0.48322148]
[1772668406134,0.03355703,90.928,90.865,0.48322148]
[1772668408422,0.03355703,90.927,90.867,0.48322148]
[1772668408622,0.03355703,90.926,90.867,0.48322148]
[1772668409636,0.03355703,90.918,90.867,0.48322148]
[1772668410838,38.49622736,90.918,90.867,0.48322148]
[1772668411132,0.03355703,90.917,90.869,0.48322148]
[1772668413726,0.03355703,90.917,90.857,27.51557992]
[1772668413727,0.03355703,90.917,90.871,0.48322148]
[1772668413923,0.03355703,90.917,90.865,0.48322148]
[1772668415141,0.03355703,90.908,90.865,0.48322148]
[1772668418753,0.03355703,90.907,90.865,0.48322148]
[1772668419643,0.03355703,90.907,90.853,11.006784]
[1772668419644,0.4701672,90.899,90.844,12.68650524]
[1772668419816,0.4701672,90.899,90.844,1.67865121]
[1772668421541,0.4701672,90.897,90.845,11.00776047]
[1772668421719,0.4701672,90.897,90.846,0.45547113]
[1772668423927,38.50554479,90.896,90.848,0.45547113]
[1772668424133,0.14216157,90.919,90.854,0.45547113]
[1772668424336,0.4701672,90.918,90.864,0.45547113]
[1772668425944,38.500462,90.908,90.864,0.45547113]
[1772668426243,0.4701672,90.907,90.864,0.45547113]
[1772668427054,0.4701672,90.905,90.864,0.45547113]
[1772668427428,0.4701672,90.905,90.865,0.45547113]
[1772668430350,0.48055171,90.903,90.865,0.45547113]
[1772668433144,11.00085806,90.902,90.867,0.49469638]
[1772668433652,10.99952702,90.913,90.867,0.49469638]
[1772668434748,0.48055171,90.912,90.867,0.49469638]
[1772668435160,10.999769,90.911,90.868,11.00497424]
[1772668435462,0.48055171,90.91,90.869,0.49469638]
[1772668437252,0.48055171,90.908,90.871,0.49469638]
[1772668439454,11.000253,90.907,90.873,0.49469638]
[1772668440757,0.48055171,90.909,90.875,0.49469638]
[1772668444755,38.98101371,90.908,90.877,0.49469638]
[1772668445140,0.48055171,90.907,90.877,0.49469638]
[1772668446759,11.00037401,90.906,90.877,0.49469638]
[1772668446957,0.48055171,90.905,90.877,0.49469638]
[1772668447533,0.48055171,90.905,90.857,0.49469638]
[1772668447740,0.48055171,90.905,90.858,0.49469638]
[1772668448860,55.27228077,90.929,90.844,1.67865121]
[1772668448861,0.48055171,90.948,90.864,0.49469638]
[1772668449038,0.48055171,90.947,90.887,0.28432314]
[1772668449234,0.48055171,90.947,90.894,0.49469638]
[1772668450035,47.66250446,90.974,90.862,3.69383402]
[1772668450036,0.48055171,90.968,90.903,0.28432314]
[1772668450238,0.48055171,90.967,90.904,0.49469638]
[1772668450856,0.48055171,90.965,90.906,0.49469638]
[1772668451351,0.48055171,90.958,90.906,0.49469638]
[1772668454461,0.48055171,90.956,90.908,0.49469638]
[1772668460265,0.48123049,90.954,90.91,0.45665475]
[1772668463276,0.48123049,90.952,90.912,0.45665475]
[1772668463977,0.48123049,90.949,90.903,0.45665475]
[1772668466176,0.46023971,90.947,90.905,0.47563107]
[1772668468077,10.99553581,90.946,90.907,0.47563107]
[1772668468284,0.46023971,90.945,90.907,0.47563107]
[1772668469373,0.46023971,90.943,90.909,0.47563107]
[1772668472488,0.46023971,90.941,90.911,0.47563107]
[1772668472888,10.99601944,90.942,90.879,0.47563107]
[1772668472889,0.46023971,90.939,90.879,0.47563107]
[1772668473068,0.46023971,90.929,90.88,0.47563107]
[1772668474884,4.1826313,90.94,90.882,0.47563107]
[1772668474885,0.46023971,90.927,90.882,0.47563107]
[1772668475393,0.46023971,90.919,90.874,0.47563107]
[1772668476191,0.46023971,90.917,90.874,0.47563107]
[1772668476884,0.46023971,90.917,90.857,0.47563107]
[1772668477392,0.46023971,90.915,90.859,0.47563107]
[1772668480595,0.46023971,90.913,90.861,0.47563107]
[1772668482894,0.46023971,90.909,90.861,0.47563107]
[1772668483396,0.46023971,90.909,90.863,0.47563107]
[1772668486399,11.000132,90.908,90.865,0.47563107]
[1772668488000,0.46023971,90.912,90.867,0.47563107]
[1772668490390,0.48818826,90.918,90.869,0.45915979]
[1772668493006,0.48818826,90.916,90.871,0.45915979]
[1772668494590,0.48818826,90.914,90.873,0.45915979]
[1772668496593,10.99928504,90.915,90.875,0.45915979]
[1772668497294,0.48818826,90.914,90.875,0.45915979]
[1772668498008,93.44356008,90.964,90.878,0.28432314]
[1772668498185,0.28432314,90.951,90.883,0.45915979]
[1772668498390,0.48818826,90.946,90.883,0.45915979]
[1772668498812,0.48818826,90.944,90.885,0.45915979]
[1772668499192,0.48818826,90.984,90.894,0.14216157]
[1772668499498,0.48818826,90.979,90.903,0.45915979]
[1772668499823,0.48818826,90.966,90.903,0.45915979]
[1772668500516,0.48818826,90.992,90.911,0.45915979]